[Event "Late-Titled-Tuesday-Blitz-February-27-2024"]
[Site "Chess.com"]
[Date "2024.02.27"]
[Round "2"]
[White "chess94cu"]
[Black "vladoboch"]
[Result "1-0"]
[WhiteElo "2701"]
[BlackElo "2434"]
[TimeControl "180+1"]
[EndTime "14:16:19 PST"]
[Termination "chess94cu won by resignation"]

1. Nf3 {[%clk 0:03:00.9]} 1... d5 {[%clk 0:02:59.8]} 2. c4 {[%clk 0:03:00]} 2...
c6 {[%clk 0:02:58.4]} 3. e3 {[%clk 0:02:59]} 3... Bg4 {[%clk 0:02:55.2]} 4. Nc3
{[%clk 0:02:58.3]} 4... e6 {[%clk 0:02:55]} 5. Qb3 {[%clk 0:02:47.1]} 5... Qb6
{[%clk 0:02:42.4]} 6. Ne5 {[%clk 0:02:43]} 6... Bf5 {[%clk 0:02:37]} 7. d4
{[%clk 0:02:39.3]} 7... Qxb3 {[%clk 0:02:34.7]} 8. axb3 {[%clk 0:02:38.4]} 8...
Bc2 {[%clk 0:02:35.4]} 9. c5 {[%clk 0:02:24.5]} 9... Bxb3 {[%clk 0:02:29.4]} 10.
Bd3 {[%clk 0:02:23.2]} 10... f6 {[%clk 0:02:27.2]} 11. Ra3 {[%clk 0:02:22.6]}
11... fxe5 {[%clk 0:02:26]} 12. Rxb3 {[%clk 0:02:22.1]} 12... e4 {[%clk
0:02:23.3]} 13. Be2 {[%clk 0:02:19.8]} 13... Nf6 {[%clk 0:02:11.4]} 14. Rxb7
{[%clk 0:02:18.3]} 14... Be7 {[%clk 0:02:09.2]} 15. f3 {[%clk 0:02:04.9]} 15...
exf3 {[%clk 0:01:51.5]} 16. gxf3 {[%clk 0:02:05.8]} 16... Nbd7 {[%clk
0:01:47.4]} 17. e4 {[%clk 0:02:04.7]} 17... dxe4 {[%clk 0:01:39.4]} 18. fxe4
{[%clk 0:02:03.9]} 18... e5 {[%clk 0:01:25.6]} 19. dxe5 {[%clk 0:02:00.2]} 19...
Nxe5 {[%clk 0:01:21.7]} 20. b4 {[%clk 0:01:39.5]} 20... Nfd7 {[%clk 0:00:58.5]}
21. O-O {[%clk 0:01:31.7]} 21... Kd8 {[%clk 0:00:51.3]} 22. Rd1 {[%clk
0:01:23.2]} 22... a6 {[%clk 0:00:45]} 23. Bg4 {[%clk 0:01:13.4]} 23... Nxg4
{[%clk 0:00:19.6]} 24. Rdxd7+ {[%clk 0:01:12.1]} 24... Ke8 {[%clk 0:00:20.1]}
25. Rxe7+ {[%clk 0:01:12.2]} 25... Kf8 {[%clk 0:00:20.9]} 26. Rf7+ {[%clk
0:01:11.5]} 26... Ke8 {[%clk 0:00:20.6]} 27. Rxg7 {[%clk 0:01:09]} 27... Nf6
{[%clk 0:00:19.9]} 28. Bg5 {[%clk 0:01:04.1]} 28... Ng8 {[%clk 0:00:12.8]} 1-0

[Event "Late-Titled-Tuesday-Blitz-February-27-2024"]
[Site "Chess.com"]
[Date "2024.02.27"]
[Round "2"]
[White "PNEPaul"]
[Black "czasnaszachy"]
[Result "0-1"]
[WhiteElo "2046"]
[BlackElo "2434"]
[TimeControl "180+1"]
[EndTime "14:16:20 PST"]
[Termination "czasnaszachy won on time"]

1. e4 {[%clk 0:02:34.2]} 1... c5 {[%clk 0:02:57.9]} 2. d4 {[%clk 0:02:34.1]}
2... cxd4 {[%clk 0:02:57.5]} 3. c3 {[%clk 0:02:34.5]} 3... dxc3 {[%clk
0:02:55.7]} 4. Nxc3 {[%clk 0:02:34.6]} 4... Nc6 {[%clk 0:02:56.1]} 5. Nf3 {[%clk
0:02:34.4]} 5... e6 {[%clk 0:02:56.3]} 6. Bf4 {[%clk 0:02:33.6]} 6... Bb4 {[%clk
0:02:54.5]} 7. Bd3 {[%clk 0:02:33.3]} 7... Nge7 {[%clk 0:02:54.2]} 8. e5 {[%clk
0:02:33.5]} 8... Bxc3+ {[%clk 0:02:48.3]} 9. bxc3 {[%clk 0:02:32.7]} 9... Qa5
{[%clk 0:02:38.8]} 10. O-O {[%clk 0:02:27.4]} 10... Ng6 {[%clk 0:02:38.9]} 11.
Bg3 {[%clk 0:02:26.8]} 11... Ncxe5 {[%clk 0:02:33.9]} 12. Nxe5 {[%clk
0:02:24.4]} 12... Nxe5 {[%clk 0:02:32.5]} 13. Bxe5 {[%clk 0:02:17.9]} 13... Qxe5
{[%clk 0:02:31.3]} 14. Re1 {[%clk 0:02:17.5]} 14... Qa5 {[%clk 0:02:20.2]} 15.
Rc1 {[%clk 0:01:49.6]} 15... O-O {[%clk 0:02:18.4]} 16. Bb1 {[%clk 0:01:42.1]}
16... d5 {[%clk 0:02:06.1]} 17. Qh5 {[%clk 0:01:38.8]} 17... f5 {[%clk
0:02:00.9]} 18. Re3 {[%clk 0:01:34.2]} 18... Qd8 {[%clk 0:01:59.1]} 19. Rh3
{[%clk 0:01:32.8]} 19... h6 {[%clk 0:01:58.7]} 20. Rg3 {[%clk 0:01:04.1]} 20...
Rf6 {[%clk 0:01:42.3]} 21. Rd1 {[%clk 0:00:58.5]} 21... Bd7 {[%clk 0:01:39.9]}
22. c4 {[%clk 0:00:57.1]} 22... Bc6 {[%clk 0:01:34.9]} 23. cxd5 {[%clk
0:00:56.1]} 23... Bxd5 {[%clk 0:01:34.9]} 24. Rh3 {[%clk 0:00:28.2]} 24... Qe8
{[%clk 0:01:31.6]} 25. Qe2 {[%clk 0:00:25.6]} 25... Rc8 {[%clk 0:01:28]} 26. Re1
{[%clk 0:00:23.4]} 26... Qc6 {[%clk 0:01:24.4]} 27. Rg3 {[%clk 0:00:19.9]} 27...
Qc4 {[%clk 0:01:15.5]} 28. Qe5 {[%clk 0:00:16.6]} 28... Kh8 {[%clk 0:01:04]} 0-1

[Event "Late-Titled-Tuesday-Blitz-February-27-2024"]
[Site "Chess.com"]
[Date "2024.02.27"]
[Round "2"]
[White "ElDivis"]
[Black "GMVignirVatnar"]
[Result "0-1"]
[WhiteElo "2468"]
[BlackElo "2713"]
[TimeControl "180+1"]
[EndTime "14:16:28 PST"]
[Termination "GMVignirVatnar won on time"]

1. d4 {[%clk 0:03:00.9]} 1... d5 {[%clk 0:02:59.6]} 2. Nf3 {[%clk 0:03:00.6]}
2... Nf6 {[%clk 0:02:59.5]} 3. c4 {[%clk 0:03:01.1]} 3... e6 {[%clk 0:02:59.8]}
4. e3 {[%clk 0:03:00.3]} 4... a6 {[%clk 0:02:58.9]} 5. b3 {[%clk 0:02:57.9]}
5... c5 {[%clk 0:02:58]} 6. cxd5 {[%clk 0:02:57.6]} 6... Nxd5 {[%clk 0:02:54.7]}
7. Bd3 {[%clk 0:02:37.7]} 7... Nc6 {[%clk 0:02:53.6]} 8. O-O {[%clk 0:02:35.4]}
8... cxd4 {[%clk 0:02:52.5]} 9. exd4 {[%clk 0:02:31.4]} 9... b5 {[%clk
0:02:44.3]} 10. a4 {[%clk 0:02:15.3]} 10... b4 {[%clk 0:02:37.9]} 11. Nbd2
{[%clk 0:01:46.8]} 11... Nc3 {[%clk 0:02:36.9]} 12. Qc2 {[%clk 0:01:44.1]} 12...
Nxd4 {[%clk 0:02:27.6]} 13. Nxd4 {[%clk 0:01:45]} 13... Qxd4 {[%clk 0:02:27.5]}
14. Nf3 {[%clk 0:01:42.7]} 14... Qc5 {[%clk 0:02:01.8]} 15. Be3 {[%clk
0:01:36.2]} 15... Qc7 {[%clk 0:02:00.2]} 16. Rfe1 {[%clk 0:01:02.3]} 16... Bb7
{[%clk 0:01:58.4]} 17. Nd4 {[%clk 0:01:02.2]} 17... Bd6 {[%clk 0:01:56.9]} 18.
f4 {[%clk 0:00:49.5]} 18... Bxf4 {[%clk 0:01:51.1]} 19. Bxf4 {[%clk 0:00:25.8]}
19... Qxf4 {[%clk 0:01:52]} 20. Nxe6 {[%clk 0:00:26.5]} 20... fxe6 {[%clk
0:01:52.1]} 21. Rxe6+ {[%clk 0:00:27.4]} 21... Kd7 {[%clk 0:01:52.7]} 22. Bf5
{[%clk 0:00:23.8]} 22... Kc7 {[%clk 0:01:41.1]} 23. Re7+ {[%clk 0:00:22.6]}
23... Kb6 {[%clk 0:01:34.2]} 24. Rae1 {[%clk 0:00:15.3]} 24... Qd4+ {[%clk
0:01:32.6]} 25. Kh1 {[%clk 0:00:15.1]} 25... Rad8 {[%clk 0:01:22.3]} 26. Bh3
{[%clk 0:00:03.5]} 26... Rhf8 {[%clk 0:01:18.8]} 27. Qxh7 {[%clk 0:00:03.3]}
27... Rd6 {[%clk 0:01:10.7]} 28. Qh5 {[%clk 0:00:02.7]} 28... Nd5 {[%clk
0:01:02.8]} 29. R7e2 {[%clk 0:00:01.3]} 29... Nf4 {[%clk 0:01:00.3]} 30. a5+
{[%clk 0:00:01.4]} 30... Ka7 {[%clk 0:01:00.7]} 0-1

[Event "Late-Titled-Tuesday-Blitz-February-27-2024"]
[Site "Chess.com"]
[Date "2024.02.27"]
[Round "2"]
[White "EvilMorty23"]
[Black "cassoulet"]
[Result "1-0"]
[WhiteElo "2554"]
[BlackElo "2759"]
[TimeControl "180+1"]
[EndTime "14:16:29 PST"]
[Termination "EvilMorty23 won by checkmate"]

1. e4 {[%clk 0:03:00.9]} 1... c5 {[%clk 0:02:59.2]} 2. Nf3 {[%clk 0:03:01]} 2...
e6 {[%clk 0:02:58.7]} 3. c3 {[%clk 0:03:01.2]} 3... Nf6 {[%clk 0:02:57.8]} 4. e5
{[%clk 0:03:01.6]} 4... Nd5 {[%clk 0:02:58.2]} 5. d4 {[%clk 0:03:02.5]} 5...
cxd4 {[%clk 0:02:58.6]} 6. cxd4 {[%clk 0:03:03.4]} 6... d6 {[%clk 0:02:59]} 7.
Bc4 {[%clk 0:03:03.5]} 7... Nb6 {[%clk 0:02:58.8]} 8. Bd3 {[%clk 0:03:03.5]}
8... Nc6 {[%clk 0:02:56.9]} 9. a3 {[%clk 0:02:57.5]} 9... Bd7 {[%clk 0:02:49.8]}
10. O-O {[%clk 0:02:57.3]} 10... Qc7 {[%clk 0:02:48.5]} 11. Nc3 {[%clk
0:02:56.6]} 11... dxe5 {[%clk 0:02:46.2]} 12. dxe5 {[%clk 0:02:57]} 12... Nxe5
{[%clk 0:02:42.6]} 13. Bf4 {[%clk 0:02:38.3]} 13... Nxf3+ {[%clk 0:02:41.9]} 14.
Qxf3 {[%clk 0:02:37.9]} 14... Bd6 {[%clk 0:02:42.4]} 15. Nb5 {[%clk 0:02:35.7]}
15... Bxb5 {[%clk 0:02:40.9]} 16. Bxb5+ {[%clk 0:02:35.8]} 16... Kf8 {[%clk
0:02:30.2]} 17. Rac1 {[%clk 0:02:28.9]} 17... Qe7 {[%clk 0:02:22]} 18. Bxd6
{[%clk 0:02:26.8]} 18... Qxd6 {[%clk 0:02:22.9]} 19. Qxb7 {[%clk 0:02:26.9]}
19... g6 {[%clk 0:02:13]} 20. Rfd1 {[%clk 0:02:23.4]} 20... Qf4 {[%clk
0:02:10.5]} 21. g3 {[%clk 0:02:05.7]} 21... Qf5 {[%clk 0:02:08.2]} 22. a4 {[%clk
0:01:26.1]} 22... Kg7 {[%clk 0:02:05.9]} 23. b4 {[%clk 0:01:23.3]} 23... Rhb8
{[%clk 0:02:02.6]} 24. Qe7 {[%clk 0:01:17.1]} 24... Nd5 {[%clk 0:02:01.8]} 25.
Qc5 {[%clk 0:01:14.6]} 25... a6 {[%clk 0:01:56.3]} 26. Bc6 {[%clk 0:01:07.4]}
26... Rb6 {[%clk 0:01:42.8]} 27. Bxa8 {[%clk 0:01:01.1]} 27... Rb8 {[%clk
0:01:24.2]} 28. Bxd5 {[%clk 0:00:59.8]} 28... exd5 {[%clk 0:01:25.1]} 29. Qd4+
{[%clk 0:00:57.1]} 29... Kg8 {[%clk 0:01:22.9]} 30. Qf4 {[%clk 0:00:55.5]} 30...
Qxf4 {[%clk 0:01:21.3]} 31. gxf4 {[%clk 0:00:56.4]} 31... Rxb4 {[%clk
0:01:21.6]} 32. Rxd5 {[%clk 0:00:55.8]} 32... Rxa4 {[%clk 0:01:22]} 33. f5
{[%clk 0:00:53.8]} 33... Kg7 {[%clk 0:01:21.6]} 34. fxg6 {[%clk 0:00:52.9]}
34... hxg6 {[%clk 0:01:22.5]} 35. Rd7 {[%clk 0:00:52.9]} 35... a5 {[%clk
0:01:22.3]} 36. Rcc7 {[%clk 0:00:52.7]} 36... Rf4 {[%clk 0:01:22.2]} 37. Ra7
{[%clk 0:00:53]} 37... a4 {[%clk 0:01:22.7]} 38. Kg2 {[%clk 0:00:53.5]} 38... g5
{[%clk 0:01:22.9]} 39. Kg3 {[%clk 0:00:52.8]} 39... Kg6 {[%clk 0:01:23.4]} 40.
Rd6+ {[%clk 0:00:52.6]} 40... f6 {[%clk 0:01:23.8]} 41. Rda6 {[%clk 0:00:52.2]}
41... Rb4 {[%clk 0:01:21.7]} 42. Rxa4 {[%clk 0:00:51.7]} 42... Rb1 {[%clk
0:01:21.9]} 43. Kg2 {[%clk 0:00:50.6]} 43... Rb5 {[%clk 0:01:21.2]} 44. R4a6
{[%clk 0:00:50.7]} 44... Rf5 {[%clk 0:01:21]} 45. Rc6 {[%clk 0:00:50]} 45... Rf4
{[%clk 0:01:21]} 46. Raa6 {[%clk 0:00:49.6]} 46... Rf5 {[%clk 0:01:20.7]} 47. f3
{[%clk 0:00:49.6]} 47... Rf4 {[%clk 0:01:20.9]} 48. Kg3 {[%clk 0:00:49.9]} 48...
Rf5 {[%clk 0:01:21.3]} 49. Rc7 {[%clk 0:00:48.4]} 49... Rf4 {[%clk 0:01:21.3]}
50. Raa7 {[%clk 0:00:49]} 50... Rb4 {[%clk 0:01:20.7]} 51. Rg7+ {[%clk 0:00:48]}
51... Kf5 {[%clk 0:01:21]} 52. Ra5+ {[%clk 0:00:47.4]} 52... Ke6 {[%clk
0:01:21]} 53. Ra6+ {[%clk 0:00:46.8]} 53... Ke5 {[%clk 0:01:18.9]} 54. Re7+
{[%clk 0:00:46.8]} 54... Kf5 {[%clk 0:01:15.6]} 55. Rf7 {[%clk 0:00:47]} 55...
Kg6 {[%clk 0:01:09.8]} 56. Raxf6+ {[%clk 0:00:44.6]} 56... Kh5 {[%clk
0:01:08.9]} 57. Rh7# {[%clk 0:00:44.8]} 1-0

[Event "Late-Titled-Tuesday-Blitz-February-27-2024"]
[Site "Chess.com"]
[Date "2024.02.27"]
[Round "2"]
[White "colegiodemadrid"]
[Black "GmSergioBarrientos"]
[Result "0-1"]
[WhiteElo "2506"]
[BlackElo "2719"]
[TimeControl "180+1"]
[EndTime "14:16:32 PST"]
[Termination "GmSergioBarrientos won by resignation"]

1. e4 {[%clk 0:02:59.7]} 1... e5 {[%clk 0:02:58.4]} 2. Nf3 {[%clk 0:02:59.9]}
2... Nc6 {[%clk 0:02:58.5]} 3. Bc4 {[%clk 0:03:00.3]} 3... Bc5 {[%clk
0:02:55.1]} 4. b4 {[%clk 0:03:00.9]} 4... Bxb4 {[%clk 0:02:54]} 5. c3 {[%clk
0:03:01.5]} 5... Bd6 {[%clk 0:02:54]} 6. d4 {[%clk 0:03:00.2]} 6... Nf6 {[%clk
0:02:54.2]} 7. O-O {[%clk 0:02:59.4]} 7... O-O {[%clk 0:02:54.3]} 8. Na3 {[%clk
0:02:59.2]} 8... a6 {[%clk 0:02:53.9]} 9. Bd3 {[%clk 0:02:58.7]} 9... Re8 {[%clk
0:02:52.2]} 10. Nc4 {[%clk 0:02:57.6]} 10... b5 {[%clk 0:02:47.9]} 11. Nxd6
{[%clk 0:02:57.4]} 11... cxd6 {[%clk 0:02:48.8]} 12. d5 {[%clk 0:02:56.6]} 12...
Ne7 {[%clk 0:02:45.9]} 13. a4 {[%clk 0:02:55.8]} 13... bxa4 {[%clk 0:02:45.4]}
14. Rxa4 {[%clk 0:02:55.7]} 14... Ng6 {[%clk 0:02:44.4]} 15. Ba3 {[%clk
0:02:54.1]} 15... Qc7 {[%clk 0:02:43.6]} 16. c4 {[%clk 0:02:50.1]} 16... a5
{[%clk 0:02:42.6]} 17. Qd2 {[%clk 0:02:44.8]} 17... Nf4 {[%clk 0:02:40.6]} 18.
Ra1 {[%clk 0:02:44.3]} 18... Nxd3 {[%clk 0:02:40]} 19. Qxd3 {[%clk 0:02:44.3]}
19... Ba6 {[%clk 0:02:39.8]} 20. Nh4 {[%clk 0:02:41]} 20... g6 {[%clk
0:02:34.6]} 21. Rc1 {[%clk 0:02:38.3]} 21... Rec8 {[%clk 0:02:31.5]} 22. Qd2
{[%clk 0:02:35.5]} 22... Nxe4 {[%clk 0:02:29.3]} 23. Qh6 {[%clk 0:02:29.1]}
23... Qd8 {[%clk 0:02:25.4]} 24. c5 {[%clk 0:02:19.4]} 24... Nxc5 {[%clk
0:02:17.8]} 25. Nf5 {[%clk 0:02:16.7]} 25... Qf6 {[%clk 0:02:10.2]} 26. Rh4
{[%clk 0:02:07.6]} 26... Qxf5 {[%clk 0:02:08.2]} 27. Qxh7+ {[%clk 0:01:55.5]}
27... Kf8 {[%clk 0:02:08.4]} 28. Rh3 {[%clk 0:01:50.5]} 28... Be2 {[%clk
0:01:52.5]} 29. Re3 {[%clk 0:01:45.2]} 29... Bh5 {[%clk 0:01:49.3]} 30. h3
{[%clk 0:01:36.8]} 30... Ke7 {[%clk 0:01:48.3]} 31. g4 {[%clk 0:01:32.8]} 31...
Qg5 {[%clk 0:01:42.4]} 32. Rf3 {[%clk 0:01:28.1]} 32... Rf8 {[%clk 0:01:33.8]}
33. Re1 {[%clk 0:01:23.6]} 33... Bxg4 {[%clk 0:01:29]} 34. hxg4 {[%clk
0:01:20.9]} 34... Qxg4+ {[%clk 0:01:29.5]} 35. Rg3 {[%clk 0:01:21.2]} 35... Qf5
{[%clk 0:01:29.8]} 36. Qh4+ {[%clk 0:01:14.5]} 36... Qf6 {[%clk 0:01:26.3]} 37.
Qc4 {[%clk 0:01:10.6]} 37... Rfc8 {[%clk 0:01:24.5]} 38. Bc1 {[%clk 0:01:10.8]}
38... Qf5 {[%clk 0:01:21.9]} 39. Qh4+ {[%clk 0:01:09.7]} 39... f6 {[%clk
0:01:16.9]} 40. Qh7+ {[%clk 0:01:07.6]} 40... Kd8 {[%clk 0:01:17.2]} 41. Rxg6
{[%clk 0:01:03.9]} 41... Kc7 {[%clk 0:01:16.6]} 42. Rg7 {[%clk 0:00:43.9]} 42...
Qxh7 {[%clk 0:01:16.4]} 43. Rxh7 {[%clk 0:00:44.8]} 43... Rh8 {[%clk 0:01:15.5]}
44. Rf7 {[%clk 0:00:44.3]} 44... Rag8+ {[%clk 0:01:14.8]} 45. Kf1 {[%clk
0:00:44.9]} 45... Rh1+ {[%clk 0:01:15.5]} 46. Ke2 {[%clk 0:00:45.3]} 46... Rxe1+
{[%clk 0:01:16.4]} 47. Kxe1 {[%clk 0:00:45.8]} 47... Nd3+ {[%clk 0:01:17.1]} 48.
Kd2 {[%clk 0:00:45.9]} 48... Nxc1 {[%clk 0:01:17.7]} 49. Kxc1 {[%clk 0:00:46.6]}
49... Rg4 {[%clk 0:01:15.7]} 50. Rxf6 {[%clk 0:00:46.2]} 50... Rd4 {[%clk
0:01:15.9]} 51. f4 {[%clk 0:00:44.4]} 51... Rxf4 {[%clk 0:01:15.4]} 52. Rh6
{[%clk 0:00:44.6]} 52... Rd4 {[%clk 0:01:15.1]} 0-1

[Event "Late-Titled-Tuesday-Blitz-February-27-2024"]
[Site "Chess.com"]
[Date "2024.02.27"]
[Round "2"]
[White "ProChessWICTH"]
[Black "QuintilianoR"]
[Result "1-0"]
[WhiteElo "2552"]
[BlackElo "2754"]
[TimeControl "180+1"]
[EndTime "14:16:33 PST"]
[Termination "ProChessWICTH won by resignation"]

1. d4 {[%clk 0:03:00.9]} 1... Nf6 {[%clk 0:02:59.6]} 2. c4 {[%clk 0:03:01.5]}
2... e6 {[%clk 0:02:59.8]} 3. Nc3 {[%clk 0:03:02.1]} 3... Bb4 {[%clk 0:02:59.8]}
4. Bg5 {[%clk 0:03:02.3]} 4... h6 {[%clk 0:02:59.6]} 5. Bxf6 {[%clk 0:02:58.1]}
5... Bxc3+ {[%clk 0:02:58.5]} 6. bxc3 {[%clk 0:02:57.7]} 6... Qxf6 {[%clk
0:02:59.4]} 7. e3 {[%clk 0:02:58.3]} 7... c5 {[%clk 0:02:58.9]} 8. Nf3 {[%clk
0:02:56.3]} 8... O-O {[%clk 0:02:59]} 9. Bd3 {[%clk 0:02:55.4]} 9... Nc6 {[%clk
0:02:58.1]} 10. O-O {[%clk 0:02:56.1]} 10... b6 {[%clk 0:02:58.1]} 11. Rb1
{[%clk 0:02:46]} 11... d6 {[%clk 0:02:57.6]} 12. Be4 {[%clk 0:02:43.8]} 12...
Bb7 {[%clk 0:02:55.7]} 13. dxc5 {[%clk 0:02:43.5]} 13... dxc5 {[%clk 0:02:34.7]}
14. Qd7 {[%clk 0:02:42.5]} 14... Rab8 {[%clk 0:02:34.3]} 15. Bxc6 {[%clk
0:02:40.3]} 15... Rfd8 {[%clk 0:02:34.7]} 16. Qc7 {[%clk 0:02:39.7]} 16... Rdc8
{[%clk 0:02:34.8]} 17. Qxb7 {[%clk 0:02:24.4]} 17... Rxb7 {[%clk 0:02:34.5]} 18.
Bxb7 {[%clk 0:02:25.3]} 18... Rc7 {[%clk 0:02:35.4]} 19. Be4 {[%clk 0:02:25.3]}
19... Qxc3 {[%clk 0:02:35.6]} 20. Rfc1 {[%clk 0:02:24.9]} 20... Qa5 {[%clk
0:02:35.3]} 21. Rb2 {[%clk 0:02:22.5]} 21... Qa3 {[%clk 0:02:30.5]} 22. Rcc2
{[%clk 0:02:17.2]} 22... Rd7 {[%clk 0:02:29.6]} 23. g4 {[%clk 0:02:17]} 23... g6
{[%clk 0:02:27.3]} 24. Ne5 {[%clk 0:02:11.8]} 24... Rd1+ {[%clk 0:02:27.1]} 25.
Kg2 {[%clk 0:02:11.7]} 25... Qa5 {[%clk 0:02:27]} 26. Nf3 {[%clk 0:01:57.1]}
26... f5 {[%clk 0:02:16.9]} 27. gxf5 {[%clk 0:01:57.6]} 27... gxf5 {[%clk
0:02:17.8]} 28. Bc6 {[%clk 0:01:58.2]} 28... Rd6 {[%clk 0:02:17.6]} 29. Ne5
{[%clk 0:01:54.9]} 29... Qe1 {[%clk 0:02:13.8]} 30. Re2 {[%clk 0:01:52]} 30...
Qc1 {[%clk 0:02:10.7]} 31. Rbc2 {[%clk 0:01:45.8]} 31... Qa1 {[%clk 0:02:08.8]}
32. f4 {[%clk 0:01:46.2]} 32... Rd1 {[%clk 0:02:08]} 33. Kh3 {[%clk 0:01:45.4]}
33... Kf8 {[%clk 0:02:03.8]} 34. Rg2 {[%clk 0:01:39]} 34... Rg1 {[%clk
0:02:00.6]} 35. Rcd2 {[%clk 0:01:31.3]} 35... Rxg2 {[%clk 0:01:56.6]} 36. Kxg2
{[%clk 0:01:32.2]} 36... Qe1 {[%clk 0:01:56.2]} 37. Rd3 {[%clk 0:01:29.3]} 37...
Qe2+ {[%clk 0:01:54.7]} 38. Kg3 {[%clk 0:01:26]} 38... Qe1+ {[%clk 0:01:54.5]}
39. Kh3 {[%clk 0:01:24.3]} 39... Qf1+ {[%clk 0:01:54.6]} 40. Kh4 {[%clk
0:01:21.5]} 40... Qf2+ {[%clk 0:01:53.8]} 41. Kh5 {[%clk 0:01:19.9]} 41... Qxh2+
{[%clk 0:00:56.5]} 42. Kg6 {[%clk 0:01:18.6]} 42... Qg3+ {[%clk 0:00:52.1]} 43.
Kf6 {[%clk 0:01:15.3]} 43... Qg7+ {[%clk 0:00:51.9]} 44. Kxe6 {[%clk 0:01:15.5]}
44... Qe7+ {[%clk 0:00:50.5]} 45. Kxf5 {[%clk 0:01:15.6]} 45... Kg8 {[%clk
0:00:39.7]} 46. Rd7 {[%clk 0:01:15]} 46... Qf8+ {[%clk 0:00:34.9]} 47. Kg6
{[%clk 0:01:15.1]} 1-0

[Event "Late-Titled-Tuesday-Blitz-February-27-2024"]
[Site "Chess.com"]
[Date "2024.02.27"]
[Round "2"]
[White "GotCheeseCheckers"]
[Black "MarcoRiehle"]
[Result "1-0"]
[WhiteElo "2549"]
[BlackElo "2753"]
[TimeControl "180+1"]
[EndTime "14:16:35 PST"]
[Termination "GotCheeseCheckers won by resignation"]

1. e4 {[%clk 0:02:50.9]} 1... e5 {[%clk 0:02:58.8]} 2. Nf3 {[%clk 0:02:50.8]}
2... Nf6 {[%clk 0:02:59.3]} 3. Nc3 {[%clk 0:02:47.4]} 3... Nc6 {[%clk 0:02:59]}
4. Be2 {[%clk 0:02:47.3]} 4... Bc5 {[%clk 0:02:58.2]} 5. O-O {[%clk 0:02:47]}
5... d6 {[%clk 0:02:57.9]} 6. d3 {[%clk 0:02:47.4]} 6... h6 {[%clk 0:02:58]} 7.
Na4 {[%clk 0:02:46.9]} 7... Bb6 {[%clk 0:02:58.1]} 8. Nxb6 {[%clk 0:02:46.9]}
8... axb6 {[%clk 0:02:59]} 9. c4 {[%clk 0:02:47.2]} 9... O-O {[%clk 0:02:58.2]}
10. h3 {[%clk 0:02:46.5]} 10... Ne7 {[%clk 0:02:56.4]} 11. Be3 {[%clk
0:02:45.7]} 11... Ng6 {[%clk 0:02:56]} 12. Qd2 {[%clk 0:02:45.4]} 12... Be6
{[%clk 0:02:54.2]} 13. a3 {[%clk 0:02:39.4]} 13... Qd7 {[%clk 0:02:52.6]} 14.
Rfe1 {[%clk 0:02:38.4]} 14... b5 {[%clk 0:02:52.8]} 15. c5 {[%clk 0:02:35.6]}
15... dxc5 {[%clk 0:02:51.8]} 16. Bxc5 {[%clk 0:02:35.5]} 16... Rfd8 {[%clk
0:02:52.5]} 17. Bf1 {[%clk 0:02:34.8]} 17... b6 {[%clk 0:02:51]} 18. Be3 {[%clk
0:02:35]} 18... c5 {[%clk 0:02:49.9]} 19. Qc3 {[%clk 0:02:33.1]} 19... Qc7
{[%clk 0:02:44.8]} 20. b4 {[%clk 0:02:32.9]} 20... c4 {[%clk 0:02:43.6]} 21. Nd2
{[%clk 0:02:16.9]} 21... Rac8 {[%clk 0:02:42]} 22. dxc4 {[%clk 0:02:11.7]} 22...
bxc4 {[%clk 0:02:41.5]} 23. a4 {[%clk 0:02:12.6]} 23... Qb7 {[%clk 0:02:37.7]}
24. a5 {[%clk 0:02:10.3]} 24... bxa5 {[%clk 0:02:36.6]} 25. bxa5 {[%clk
0:02:11.2]} 25... Nxe4 {[%clk 0:02:35.7]} 26. Nxe4 {[%clk 0:02:11.6]} 26... Qxe4
{[%clk 0:02:36.4]} 27. Bb6 {[%clk 0:02:11.3]} 27... Qd5 {[%clk 0:02:28.8]} 28.
Bxd8 {[%clk 0:02:07.6]} 28... Qxd8 {[%clk 0:02:29.2]} 29. a6 {[%clk 0:02:04.9]}
29... Qb6 {[%clk 0:02:27.3]} 30. Reb1 {[%clk 0:01:59.8]} 30... Qa7 {[%clk
0:02:25.8]} 31. Rb7 {[%clk 0:01:54.8]} 31... Qa8 {[%clk 0:02:26.2]} 32. Qb4
{[%clk 0:01:55]} 32... Bd5 {[%clk 0:02:23.5]} 33. Rd1 {[%clk 0:01:49.4]} 33...
Bc6 {[%clk 0:02:17.7]} 34. Bxc4 {[%clk 0:01:44.1]} 34... Nf4 {[%clk 0:02:18]}
35. Qe7 {[%clk 0:01:34.7]} 35... Rf8 {[%clk 0:02:12.7]} 36. Bxf7+ {[%clk
0:01:34.1]} 36... Kh8 {[%clk 0:02:12.7]} 37. Bd5 {[%clk 0:01:29.5]} 37... Rg8
{[%clk 0:02:02.1]} 38. Bxc6 {[%clk 0:01:24.5]} 38... Qxa6 {[%clk 0:02:00.7]} 39.
Bf3 {[%clk 0:01:18.9]} 39... Qg6 {[%clk 0:01:58.3]} 40. Qxe5 {[%clk 0:01:12.6]}
40... Nxh3+ {[%clk 0:01:58.4]} 41. Kf1 {[%clk 0:01:12.3]} 41... Ng5 {[%clk
0:01:53.8]} 42. Rdd7 {[%clk 0:01:05.1]} 42... Nxf3 {[%clk 0:01:49.8]} 43. gxf3
{[%clk 0:01:05.1]} 43... Qa6+ {[%clk 0:01:50.3]} 44. Kg2 {[%clk 0:01:04.6]}
44... Qg6+ {[%clk 0:01:50.9]} 45. Qg3 {[%clk 0:01:05.2]} 45... Qf6 {[%clk
0:01:51.5]} 46. Rf7 {[%clk 0:01:03.8]} 46... Qd4 {[%clk 0:01:51.3]} 47. f4
{[%clk 0:01:03.5]} 47... Qd5+ {[%clk 0:01:50.2]} 48. Kh2 {[%clk 0:01:04]} 48...
Qh5+ {[%clk 0:01:49.8]} 49. Kg2 {[%clk 0:01:01.3]} 49... Qd5+ {[%clk 0:01:50]}
50. Qf3 {[%clk 0:00:58.1]} 50... Qd6 {[%clk 0:01:49.2]} 51. f5 {[%clk
0:00:55.8]} 51... Qe5 {[%clk 0:01:49.2]} 52. Qg3 {[%clk 0:00:53]} 52... Qe4+
{[%clk 0:01:43.8]} 53. Kh2 {[%clk 0:00:52.3]} 53... Qd4 {[%clk 0:01:41]} 54. f6
{[%clk 0:00:51.8]} 54... Qd5 {[%clk 0:01:38.2]} 55. Rxg7 {[%clk 0:00:42.1]}
55... Qh5+ {[%clk 0:01:38.2]} 56. Kg2 {[%clk 0:00:39.5]} 56... Qd5+ {[%clk
0:01:34.7]} 57. f3 {[%clk 0:00:40]} 57... Qd2+ {[%clk 0:01:33]} 58. Kh3 {[%clk
0:00:39.1]} 1-0